fUST/lending_fUST_20250824
["ID","MTS","AMOUNT","RATE_DAILY","PERIOD"]
[381036147,1755964996579,-555.25941433,0.00027522,3]
[381036148,1755964998892,-165.02603602,0.00027522,3]
[381036149,1755965000330,-375.710399,0.00027522,3]
[381036150,1755965006243,-187.41557551,0.00027522,3]
[381036151,1755965053190,594.96988291,0.000269,10]
[381036152,1755965121319,2000.0,0.00027205,2]
[381036154,1755965134798,3915.58246262,0.00027205,2]
[381036155,1755965134821,1084.41753738,0.00027205,2]
[381036156,1755965150415,5000.0,0.00027205,2]
[381036157,1755965190266,156.90413186,0.00026847,2]
[381036158,1755965196405,3758.68833076,0.00027205,2]
[381036159,1755965196429,1241.31166924,0.00027205,2]
[381036160,1755965204424,5000.0,0.00027205,2]
[381036161,1755965213540,3758.69833076,0.00027205,2]
[381036162,1755965213562,1241.30166924,0.00027205,2]
[381036163,1755965228916,5000.0,0.00027205,2]
[381036164,1755965244851,3758.70833076,0.00027205,2]
[381036165,1755965244875,1241.29166924,0.00027205,2]
[381036166,1755965261088,5000.0,0.00027205,2]
[381036167,1755965277185,3758.71833076,0.00027205,2]
[381036168,1755965277208,1241.28166924,0.00027205,2]
[381036191,1755965432896,-187.41557551,0.00027492,2]
[381036192,1755965432906,-3716.58857514,0.00027522,3]
[381036193,1755965432915,-183.51227797,0.0002777,2]
[381036194,1755965432925,-1051.89882798,0.00027833,2]
[381036195,1755965432934,-2524.67509987,0.00027833,2]
[381036196,1755965432943,-1096.0,0.00027847,2]
[381036197,1755965432952,-215.94678008,0.00027871,2]
[381036198,1755965432962,-500.0,0.00027873,5]
[381036199,1755965432971,-194.72792766,0.00027873,2]
[381036200,1755965432980,-237.21,0.0002788,3]
[381036201,1755965432990,-711.63,0.0002788,3]
[381036202,1755965432999,-201.96702828,0.0002788,2]
[381036204,1755965433008,-405.065,0.00027889,18]
[381036206,1755965433018,-1478.74,0.00027889,2]
[381036208,1755965433027,-419.90205407,0.00027889,2]
[381036209,1755965433036,-46219.79472912,0.0002789,2]
[381036210,1755965433056,-64306.59692394,0.0002789,2]
[381036211,1755965433068,-21250.99160013,0.0002789,2]
[381036213,1755965433080,-111092.08371474,0.0002789,2]
[381036215,1755965433091,-11579.58704692,0.0002789,2]
[381036367,1755965438711,-433.24,0.0002788,10]
[381036368,1755965438721,-4096.61000299,0.0002789,2]
[381036369,1755965438733,-5252.05896771,0.0002789,2]
[381036370,1755965438745,-5056.85840394,0.0002789,2]
[381036371,1755965438804,-770.37750259,0.0002789,2]
[381036372,1755965438815,-64302.59878913,0.0002789,2]
[381036373,1755965438826,-551.15844184,0.0002789,2]
[381036374,1755965438837,-5066.81263764,0.0002789,2]
[381036375,1755965438848,-315.85144568,0.0002789,2]
[381036376,1755965438878,-30138.61979363,0.0002789,2]
[381036378,1755965438887,-160.9697672,0.000279,30]
[381036380,1755965438897,-160.0,0.00027925,2]
[381036381,1755965438906,-160.0,0.00027942,2]
[381036382,1755965438915,-844.50316758,0.00027942,2]
[381036383,1755965438924,-217.0334113,0.00027942,2]
[381036384,1755965438933,-376.14580871,0.00027944,2]
[381036385,1755965438942,-299.0,0.00028,2]
[381036386,1755965438951,-417.15472785,0.00028216,2]
[381036387,1755965438961,-529.05847148,0.00028216,2]
[381036388,1755965438970,-232.37252479,0.00028216,2]
[381036389,1755965438979,-199.0,0.000283,30]
[381036390,1755965438989,-295.0,0.0002832,2]
[381036391,1755965439000,-160.37330475,0.00028373,2]
[381036392,1755965439009,-158.76511294,0.00028373,5]
[381036393,1755965439018,-325.39270182,0.00028373,5]
[381036394,1755965439027,-500.0,0.00028373,5]
[381036395,1755965439037,-455.53668787,0.00028373,5]
[381036396,1755965439046,-500.0,0.00028373,5]
[381036397,1755965439055,-500.88491111,0.00028373,5]
[381036398,1755965439069,-154490.45951655,0.000284,30]
[381036399,1755965439080,-6337.31471735,0.000284,30]
[381036400,1755965439092,-898.59071365,0.000284,30]
[381036401,1755965439103,-2764.25653728,0.000284,30]
[381036404,1755965440893,-4919.60664014,0.000284,30]
[381036424,1755965444749,-678.66259135,0.000284,30]
[381036425,1755965444853,-49639.42029631,0.000284,30]
[381036427,1755965444862,-157.0,0.000284,31]
[381036429,1755965444872,-160.0,0.000284,30]
[381036431,1755965444881,-151.0,0.000284,2]
[381036433,1755965444890,-675.78166218,0.000284,30]
[381036435,1755965444900,-232.37252479,0.000284,30]
[381036436,1755965444909,-201.96702828,0.00028411,2]
[381036437,1755965444918,-151.0,0.00028421,7]
[381036438,1755965444928,-151.0,0.00028421,7]
[381036439,1755965444938,-151.0,0.00028421,7]
[381036440,1755965444947,-151.0,0.00028421,7]
[381036441,1755965444957,-151.0,0.00028421,7]
[381036442,1755965444966,-151.0,0.00028421,7]
[381036443,1755965444976,-232.37252479,0.00028421,7]
[381036444,1755965444985,-163.508857,0.00028421,7]
[381036445,1755965444994,-163.508857,0.00028421,7]
[381036446,1755965445003,-163.508857,0.00028421,7]
[381036447,1755965445013,-163.508857,0.00028421,7]
[381036448,1755965445022,-163.508857,0.00028421,7]
[381036449,1755965445032,-163.508857,0.00028421,7]
[381036450,1755965445041,-163.508857,0.00028421,7]
[381036451,1755965445051,-163.508857,0.00028421,7]
[381036452,1755965445063,-151.0,0.00028421,7]
[381036453,1755965445073,-151.0,0.00028421,7]
[381036454,1755965445083,-151.0,0.00028421,7]
[381036455,1755965445092,-248.48756,0.00028421,7]
[381036456,1755965445102,-381.761226,0.00028421,7]
[381036457,1755965445113,-381.761226,0.00028421,7]
[381036458,1755965445122,-402.576567,0.00028421,7]
[381036459,1755965445131,-381.761226,0.00028421,7]
[381036460,1755965445141,-381.761226,0.00028421,7]
[381036461,1755965445151,-402.576567,0.00028421,7]
[381036462,1755965445161,-316.92337465,0.00028421,7]
[381036520,1755965447948,-64.83785135,0.00028421,7]
[381036521,1755965447957,-381.761226,0.00028421,7]
[381036522,1755965447966,-402.576567,0.00028421,7]
[381036523,1755965447977,-402.576567,0.00028421,7]
[381036524,1755965447986,-402.576567,0.00028421,7]
[381036525,1755965447996,-381.761226,0.00028421,7]
[381036526,1755965448005,-402.576567,0.00028421,7]
[381036527,1755965448015,-381.761226,0.00028421,7]
[381036528,1755965448024,-402.576567,0.00028421,7]
[381036529,1755965448033,-402.576567,0.00028421,7]
[381036530,1755965448043,-151.0,0.00028421,7]
[381036531,1755965448052,-151.0,0.00028421,7]
[381036532,1755965448066,-151.0,0.00028421,7]
[381036533,1755965448075,-151.0,0.00028421,7]
[381036534,1755965448194,-151.0,0.00028421,7]
[381036535,1755965448206,-151.0,0.00028421,7]
[381036536,1755965448216,-151.0,0.00028421,7]
[381036537,1755965448226,-169.349131,0.00028421,7]
[381036538,1755965448235,-151.0,0.00028421,7]
[381036539,1755965448245,-151.0,0.00028421,7]
[381036540,1755965448264,-231.488374,0.00028421,7]
[381036541,1755965448276,-151.0,0.00028421,7]
[381036542,1755965448286,-151.0,0.00028421,7]
[381036543,1755965448297,-151.0,0.00028421,7]
[381036544,1755965448307,-255.288571,0.00028421,7]
[381036545,1755965448318,-151.0,0.00028421,7]
[381036546,1755965448328,-151.0,0.00028421,7]
[381036547,1755965448338,-174.38931391,0.00028421,7]
[381036548,1755965448365,-41.55746617,0.00028421,7]
[381036549,1755965448375,-257.043807,0.00028421,7]
[381036550,1755965448386,-151.0,0.00028421,7]
[381036551,1755965448395,-151.0,0.00028421,7]
[381036552,1755965448405,-217.0334113,0.00028421,7]
[381036553,1755965448415,-201.93286099,0.00028421,2]
[381036554,1755965448426,-173.49018429,0.0002843,2]
[381036555,1755965448436,-200.0,0.0002845,21]
[381036556,1755965448447,-519.0,0.00028452,2]
[381036557,1755965448458,-500.0,0.00028473,5]
[381036558,1755965448468,-501.33070003,0.00028473,5]
[381036559,1755965448478,-476.01762402,0.00028473,5]
[381036560,1755965448492,-23.98237598,0.00028473,5]
[381036561,1755965448502,-500.0,0.00028473,5]
[381036562,1755965448512,-500.0,0.00028473,5]
[381036563,1755965448522,-500.0,0.00028473,5]
[381036564,1755965448532,-500.0,0.00028473,5]
[381036565,1755965448542,-500.0,0.00028473,5]
[381036566,1755965448552,-501.37671794,0.00028473,5]
[381036567,1755965448562,-500.0,0.00028473,5]
[381036568,1755965448573,-504.73680884,0.00028473,5]
[381036569,1755965448583,-500.0,0.00028473,5]
[381036570,1755965448593,-500.0,0.00028473,2]
[381036571,1755965448603,-500.0,0.00028473,5]
[381036572,1755965448613,-13270.46386162,0.0002853,30]
[381036573,1755965448625,-559.2243623,0.0002853,30]
[381036574,1755965448637,-254.88887083,0.0002853,30]
[381036576,1755965502976,158.90963,0.00013699,2]
[381036577,1755965535485,-192.83933168,0.00027889,5]
[381036578,1755965565463,-272.52071066,0.0002779,2]
[381036579,1755965567654,-226.10928934,0.0002779,2]
[381036581,1755965655488,-257.67604671,0.000277,2]
[381036582,1755965660092,-331.22379702,0.000277,2]
[381036583,1755965695586,529.05847148,0.00027,3]
[381036584,1755965769891,206.04313448,0.0002249,2]
[381036585,1755965769944,206.04313448,0.00024216,2]
[381036586,1755965770402,206.04313448,0.00025943,4]
[381036587,1755965783784,5000.0,0.00027205,2]
[381036588,1755965802679,2452.63082584,0.00027205,2]
[381036589,1755965815077,-204.18532328,0.00026663,2]
[381036590,1755965938253,315.68385992,0.0002249,2]
[381036591,1755965938289,315.68385992,0.00024216,2]
[381036592,1755965938328,315.68385992,0.00025943,4]
[381036593,1755965938454,473.52578991,0.00025943,4]
[381036594,1755965991674,5000.0,0.00026205,2]
[381036595,1755966007676,3579.43263033,0.00026205,2]
[381036596,1755966007700,1420.56736967,0.00026205,2]
[381036597,1755966023862,5000.0,0.00026205,2]
[381036598,1755966030515,-152.0,0.00026483,2]
[381036599,1755966036981,-76.062631,0.00026483,2]
[381036600,1755966037003,-171.297184,0.00026595,2]
[381036601,1755966037026,-48.45486172,0.00026615,2]
[381036602,1755966039358,328.90519694,0.00026205,2]
[381036603,1755966039381,2218.46397722,0.00026205,2]
[381036604,1755966101921,252.54708792,0.0002249,2]
[381036605,1755966101982,252.54708792,0.00024216,2]
[381036606,1755966102026,441.95740392,0.0002249,2]
[381036607,1755966233424,413.92707335,0.00026205,2]
[381036608,1755966233448,4233.04884114,0.00026205,2]
[381036609,1755966249494,5000.0,0.00026205,2]
[381036612,1755966339937,-214.42440306,0.00026295,2]
[381036613,1755966342616,-215.79911338,0.00026295,2]
[381036614,1755966346404,-249.29737897,0.00026295,2]
[381036615,1755966348046,-276.95535707,0.00026295,2]
[381036616,1755966351246,-154.68283585,0.00026295,2]
[381036617,1755966353276,-152.12466072,0.00026295,2]
[381036619,1755966358220,-260.76842805,0.00026295,2]
[381036621,1755966364512,-176.70759056,0.00026295,2]
[381036622,1755966366420,-227.69976139,0.00026295,2]
[381036623,1755966368569,-205.30750649,0.00026295,2]
[381036624,1755966371574,-170.5846242,0.00026295,2]
[381036625,1755966373113,-177.9260266,0.00026295,2]
[381036626,1755966375109,-176.60553854,0.00026295,2]
[381036627,1755966377538,-172.62340556,0.00026295,2]
[381036628,1755966380321,-301.58456872,0.00026295,2]
[381036629,1755966383552,-481.59239164,0.00026295,2]
[381036630,1755966387808,-197.48672027,0.00026295,2]
[381036631,1755966389708,-172.62340555,0.00026295,2]
[381036632,1755966394548,-361.09047357,0.00026295,2]
[381036633,1755966396580,-282.70604919,0.00026295,2]
[381036634,1755966401331,-211.20282395,0.00026295,2]
[381036635,1755966402165,387.83125295,0.00026205,2]
[381036636,1755966403071,-210.87415587,0.00026295,2]
[381036637,1755966406207,-348.29738527,0.00026295,2]
[381036638,1755966407698,-169.32631122,0.00026295,2]
[381036639,1755966410283,-522.67198023,0.00026295,2]
[381036640,1755966410548,379.12990591,0.00026205,2]
[381036641,1755966410570,2054.34344419,0.00026205,2]
[381036642,1755966413041,-249.95504812,0.00026295,2]
[381036643,1755966416292,-173.17619682,0.00026295,2]
[381036644,1755966418681,-173.48406566,0.00026295,2]
[381036645,1755966421354,-191.26424083,0.00026295,2]
[381036646,1755966422953,-160.99966894,0.00026295,2]
[381036647,1755966424587,-248.65441791,0.00026295,2]
[381036648,1755966427311,-369.5443038,0.00026295,2]
[381036649,1755966429302,-172.62340554,0.00026295,2]
[381036650,1755966431288,-509.37384048,0.00026295,2]
[381036651,1755966434433,-217.00623575,0.00026242,2]
[381036652,1755966436939,-205.36770932,0.00026242,2]
[381036653,1755966438895,-195.52538931,0.00026242,2]
[381036654,1755966440935,-223.52642444,0.00026242,2]
[381036655,1755966443419,-158.57424118,0.00026242,2]
[381036656,1755966443443,-176.86905413,0.00026295,2]
[381036657,1755966448286,217.00623575,0.00026205,2]
[381036658,1755966448478,-390.76187952,0.00026295,2]
[381036659,1755966449938,-167.0124152,0.00026295,2]
[381036660,1755966451337,-378.21735335,0.00026295,2]
[381036661,1755966454738,-216.1680267,0.00026295,2]
[381036662,1755966457271,-165.89224048,0.00026295,2]
[381036663,1755966459742,-165.0409466,0.00026295,2]
[381036664,1755966474131,7194.91419797,0.00018,2]
[381036665,1755966493326,386.71568201,0.00026205,2]
[381036666,1755966505011,147.03044008,0.00021,2]
[381036667,1755966505033,124.70892069,0.00021,2]
[381036668,1755966507573,2095.54154812,0.000176,2]
[381036669,1755966520174,697.84376097,0.00025,2]
[381036670,1755966524767,4227.75939334,0.0002,2]
[381036673,1755966527591,323.68890673,0.00021,2]
[381036674,1755966528027,2530.46747015,0.0002,2]
[381036675,1755966528050,887.05598716,0.0002,2]
[381036709,1755966631876,-179.60776928,0.00026615,2]
[381036710,1755966631886,-215.94678008,0.00026657,2]
[381036711,1755966631902,-1309.42382772,0.00026663,2]
[381036712,1755966631911,-72.78981786,0.00026989,2]
[381036713,1755966631922,-137.21018214,0.00026989,2]
[381036715,1755966631932,-300.0,0.00026989,2]
[381036716,1755966631942,-250.0,0.00026989,2]
[381036717,1755966631951,-30.5167064,0.00026989,2]
[381036718,1755966631964,-133.4832936,0.00026989,2]
[381036719,1755966631974,-150.95811475,0.00026989,2]
[381036720,1755966631986,-149.04188525,0.00026989,2]
[381036722,1755966631996,-902.0,0.00026989,2]
[381036724,1755966632007,-6368.03517697,0.0002699,2]
[381036725,1755966632017,-250.0,0.00027,7]
[381036726,1755966632026,-1070.4464489,0.00027673,2]
[381036728,1755966632036,-324.052,0.000277,17]
[381036730,1755966632046,-2519.80930587,0.000277,2]
[381036732,1755966632055,-11299.16071279,0.000277,2]
[381036733,1755966632064,-2030.296672,0.00027757,2]
[381036734,1755966632074,-376.14580871,0.00027759,2]
[381036735,1755966632084,-559.36365138,0.00027773,5]
[381036736,1755966632093,-151.0,0.00027773,2]
[381036737,1755966632103,-151.0,0.00027773,2]
[381036738,1755966632112,-151.0,0.00027773,2]
[381036739,1755966632121,-194.72792766,0.00027773,2]
[381036740,1755966632130,-151.0,0.00027773,2]
[381036741,1755966632139,-300.0,0.00027773,2]
[381036742,1755966632148,-151.0,0.00027773,2]
[381036743,1755966632157,-151.0,0.00027773,2]
[381036744,1755966632166,-300.0,0.00027773,2]
[381036745,1755966632175,-151.0,0.00027773,2]
[381036746,1755966632185,-151.0,0.00027773,2]
[381036747,1755966632194,-151.0,0.00027773,2]
[381036748,1755966632205,-151.0,0.00027773,2]
[381036749,1755966632215,-300.0,0.00027773,2]
[381036750,1755966632224,-151.0,0.00027773,2]
[381036751,1755966632233,-151.0,0.00027773,2]
[381036752,1755966632242,-156.57910944,0.00027773,2]
[381036753,1755966632251,-151.0,0.00027773,2]
[381036754,1755966632260,-151.0,0.00027773,2]
[381036755,1755966632269,-300.0,0.00027773,2]
[381036756,1755966632278,-151.0,0.00027773,2]
[381036757,1755966632287,-151.0,0.00027773,2]
[381036758,1755966632296,-151.0,0.00027773,2]
[381036759,1755966632306,-151.0,0.00027773,2]
[381036760,1755966632315,-151.0,0.00027773,2]
[381036761,1755966632324,-300.0,0.00027773,2]
[381036762,1755966632333,-151.0,0.00027773,2]
[381036763,1755966632342,-151.0,0.00027773,2]
[381036764,1755966632352,-7.30424821,0.00027773,2]
[381036765,1755966632380,-143.69575179,0.00027773,2]
[381036766,1755966632390,-151.0,0.00027773,2]
[381036767,1755966632399,-300.0,0.00027773,2]
[381036768,1755966632411,-151.0,0.00027773,2]
[381036769,1755966632421,-151.0,0.00027773,2]
[381036770,1755966632430,-158.42217796,0.00027773,2]
[381036771,1755966632439,-151.0,0.00027773,2]
[381036772,1755966632448,-314.0,0.00027773,2]
[381036773,1755966632458,-151.0,0.00027773,2]
[381036774,1755966632467,-151.0,0.00027773,2]
[381036775,1755966632476,-237.28236603,0.00027773,2]
[381036776,1755966632489,-151.0,0.00027773,2]
[381036777,1755966632499,-152.27873634,0.00027773,2]
[381036778,1755966632509,-17842.522448,0.00027773,2]
[381036779,1755966632518,-1000.0,0.00027773,2]
[381036780,1755966632527,-1000.0,0.00027773,2]
[381036781,1755966632536,-1000.0,0.00027773,2]
[381036782,1755966632545,-1000.0,0.00027773,2]
[381036783,1755966632554,-1000.0,0.00027773,2]
[381036784,1755966632563,-1000.0,0.00027773,2]
[381036785,1755966632573,-661.27116181,0.00027773,2]
[381036786,1755966632582,-166.67601545,0.00027773,2]
[381036787,1755966632591,-474.42,0.0002778,3]
[381036788,1755966632600,-1417.12,0.00027789,2]
[381036789,1755966632609,-1256.0,0.00027789,5]
[381036790,1755966632618,-293.93143784,0.00027789,2]
[381036791,1755966632627,-500.0,0.00027789,2]
[381036792,1755966632636,-500.0,0.00027789,2]
[381036793,1755966632646,-566.14580334,0.00027789,2]
[381036794,1755966632655,-232419.77995366,0.0002779,2]
[381036813,1755966637893,-25804.79205127,0.0002779,2]
[381036814,1755966637904,-455.18249544,0.0002779,2]
[381036815,1755966637915,-2998.44269599,0.0002779,2]
[381036816,1755966637926,-652.66070144,0.0002779,2]
[381036817,1755966637937,-1950.00000928,0.0002779,2]
[381036818,1755966637949,-20270.04308679,0.0002779,2]
[381036819,1755966637965,-84950.46900613,0.0002779,2]
[381036820,1755966637974,-251.88,0.000278,7]
[381036821,1755966637983,-2105.41764886,0.00027812,2]
[381036822,1755966637992,-232.37252479,0.00027851,2]
[381036823,1755966638001,-844.50316758,0.00027851,2]
[381036824,1755966638011,-160.0,0.00027851,2]
[381036825,1755966638020,-217.0334113,0.00027851,2]
[381036826,1755966638029,-160.0,0.00027853,2]
[381036827,1755966638038,-2183.31810187,0.00027867,2]
[381036828,1755966638047,-1274.38623546,0.00028,2]
[381036829,1755966638056,-529.05847148,0.00028,10]
[381036830,1755966638065,-1256.0,0.00028063,6]
[381036831,1755966638074,-199.0,0.000283,30]
[381036832,1755966638083,-201.93286099,0.00028321,2]
[381036833,1755966638092,-1256.0,0.00028337,7]
[381036834,1755966638101,-151.0,0.00028473,2]
[381036835,1755966638111,-21534.00000005,0.00028528,2]
[381036836,1755966638120,-73613.89847907,0.0002853,30]
[381036837,1755966638132,-12101.6593997,0.0002853,30]
[381036838,1755966638144,-15286.74388368,0.0002853,30]
[381036839,1755966638153,-151.779159,0.0002853,7]
[381036840,1755966638162,-217.0334113,0.0002853,30]
[381036841,1755966638171,-417.15472785,0.0002853,30]
[381036842,1755966638181,-529.05847148,0.0002853,30]
[381036843,1755966638190,-151.0,0.00028533,7]
[381036844,1755966638199,-151.0,0.00028533,7]
[381036845,1755966638209,-151.0,0.00028533,7]
[381036846,1755966638219,-151.0,0.00028533,7]
[381036847,1755966638228,-151.0,0.00028533,7]
[381036848,1755966638237,-229.056736,0.00028533,7]
[381036849,1755966638246,-241.54594,0.00028533,7]
[381036850,1755966638255,-229.056736,0.00028533,7]
[381036851,1755966638264,-229.056736,0.00028533,7]
[381036852,1755966638273,-241.54594,0.00028533,7]
[381036853,1755966638283,-229.056736,0.00028533,7]
[381036854,1755966638292,-241.54594,0.00028533,7]
[381036855,1755966638301,-241.54594,0.00028533,7]
[381036856,1755966638310,-151.0,0.00028533,7]
[381036857,1755966638320,-151.0,0.00028533,7]
[381036858,1755966638329,-4758.98589123,0.00028534,2]
[381036859,1755966638340,-11426.67810676,0.00028534,2]
[381036874,1755966639977,-56310.48441232,0.00028534,2]
[381036954,1755966640710,-107.67254288,0.00028534,2]
[381036956,1755966640720,-271.70759998,0.00028534,2]
[381037307,1755966643921,160.0,0.00026663,2]
[381037375,1755966644607,-698.61212129,0.00028534,2]
[381037377,1755966644618,-4535.53482999,0.00028534,2]
[381037383,1755966644660,-46422.83,0.00028534,2]
[381037461,1755966645922,-3526.54529487,0.00028534,2]
[381037462,1755966645937,-12771.03958286,0.00028534,2]
[381037463,1755966645946,-3161.37558412,0.00028534,2]
[381037464,1755966645957,-737.66493114,0.00028534,2]
[381037465,1755966645969,-1436.24338118,0.00028534,2]
[381037466,1755966646030,-6501.91767592,0.00028534,2]
[381037467,1755966646041,-4262.33506886,0.00028534,2]
[381037524,1755966678637,257.27,0.00025026,7]
[381037525,1755966685249,158.0,7.8e-07,2]
[381037526,1755966702885,-160.61025605,0.00026335,16]
[381037527,1755966703917,406.147,0.00025205,9]
[381037528,1755966705471,-480.0,0.00026335,16]
[381037529,1755966707470,-369.31463837,0.00026335,16]
[381037530,1755966711162,-333.1762591,0.00026335,16]
[381037531,1755966714857,-18.35687727,0.00026335,16]
[381037532,1755966717985,-214.26673267,0.00026467,2]
[381037533,1755966736454,164.0,0.00024,7]
[381037534,1755966737739,164.0,0.00024688,7]
[381037535,1755966744712,171.51,0.00024927,2]
[381037536,1755966766663,864.77405927,0.000199,2]
[381037537,1755966767082,864.77405927,0.00021627,2]
[381037538,1755966767294,864.77405927,0.0002508,2]
[381037539,1755966767645,284.19827659,0.00023353,2]
[381037540,1755966767668,580.57578268,0.00023353,2]
[381037541,1755966792620,-220.0,0.00026498,2]
[381037542,1755966799944,150.3,0.00025794,7]
[381037543,1755966800007,150.3,0.00026094,7]
[381037544,1755966804958,150.3,0.00025894,7]
[381037545,1755966805298,150.3,0.00025994,7]
[381037546,1755966805882,150.3,0.00026194,7]
[381037547,1755966821638,3865.62905235,0.00025527,2]
[381037548,1755966821660,2951.77900925,0.00025527,2]
[381037549,1755966826137,-150.3,0.00026294,7]
[381037550,1755966826159,-106.07088672,0.00026394,7]
[381037551,1755966831059,-44.22911328,0.00026394,7]
[381037552,1755966855142,-244.1093505,0.00026373,2]
[381037553,1755966856701,-232.81674726,0.00026373,2]
[381037554,1755966860189,-24.84639442,0.00026373,2]
[381037555,1755966860211,-275.15360558,0.00026373,2]
[381037556,1755966861702,-224.84639442,0.00026373,2]
[381037557,1755966861724,-182.59745565,0.00026373,2]
[381037558,1755966865064,-190.52140825,0.00026373,2]
[381037559,1755966866479,-126.8811361,0.00026373,2]
[381037560,1755966866501,-64.18467423,0.00026373,2]
[381037561,1755966868520,-176.80344377,0.00026373,2]
[381037562,1755966869912,-181.08103901,0.00026373,2]
[381037563,1755966871960,-77.93084299,0.00026373,2]
[381037564,1755966871983,-162.09685406,0.00026373,2]
[381037565,1755966873463,-320.87413054,0.00026373,2]
[381037566,1755966878151,-17.0290154,0.00026373,2]
[381037567,1755966878174,-264.33933233,0.00026373,2]
[381037568,1755966880221,-209.89621954,0.00026373,2]
[381037569,1755966884614,1027.44521776,0.00025606,2]
[381037570,1755966886538,-25.76444813,0.00026373,2]
[381037571,1755966886559,-296.44900564,0.00026373,2]
[381037572,1755966889057,-203.55099436,0.00026373,2]
[381037573,1755966889079,-130.90085453,0.00026373,2]
[381037574,1755966893072,-184.54139018,0.00026373,2]
[381037575,1755966895222,-184.55775529,0.00026373,2]
[381037576,1755966895243,-149.70316207,0.00026373,2]
[381037577,1755966899973,-188.72113322,0.00026373,2]
[381037578,1755966902625,-161.57570471,0.00026373,2]
[381037579,1755966902647,-11.04770083,0.00026373,2]
[381037580,1755966903145,5711.0,0.00024,2]
[381037581,1755966904697,-252.01808931,0.00026373,2]
[381037582,1755966904718,-4.75147961,0.00026373,2]
[381037583,1755966908637,-292.96245956,0.00026373,2]
[381037584,1755966910839,309.78577299,0.00026205,2]
[381037585,1755966911057,-78.11470631,0.00026205,2]
[381037586,1755966911079,-90.33373556,0.00026373,2]
[381037587,1755966912747,2000.0,0.00027334,120]
[381037588,1755966913055,2000.0,0.00027334,120]
[381037589,1755966913318,216.5,0.00027334,120]
[381037590,1755966926204,168.44844187,0.00025,3]
[381037591,1755966933282,749.47085158,0.000199,2]
[381037592,1755966933841,-220.0,0.00021627,2]
[381037593,1755966936253,-259.56725406,0.00021627,2]
[381037594,1755966938355,-172.70484335,0.00021627,2]
[381037595,1755966941653,-97.19875395,0.00021627,2]
[381037596,1755966941676,-156.12054987,0.00023353,2]
[381037597,1755966944323,-169.21952857,0.00023353,2]
[381037598,1755966946922,-326.0,0.00023353,2]
[381037599,1755966949345,-98.13077292,0.00023353,2]
[381037601,1755967054787,-258.2798947,0.00024377,2]
[381037602,1755967056477,-213.7163675,0.00024377,2]
[381037603,1755967058329,-453.3750942,0.00024377,2]
[381037604,1755967061271,-191.89004545,0.00024377,2]
[381037605,1755967063778,-284.86336973,0.00024377,2]
[381037606,1755967072759,-166.0,0.00024377,2]
[381037607,1755967076034,-184.82774391,0.00024377,2]
[381037608,1755967080482,-455.52654132,0.00024377,2]
[381037609,1755967085242,-249.32207413,0.00024377,2]
[381037610,1755967086785,-326.0,0.00024377,2]
[381037611,1755967091390,-217.40260384,0.00024377,2]
[381037612,1755967099791,837.84082164,0.000199,2]
[381037614,1755967154321,-197.9338485,0.0002141,2]
[381037615,1755967159535,-280.85711593,0.0002141,2]
[381037616,1755967161240,-237.2556677,0.0002141,2]
[381037617,1755967164400,-525.40387951,0.0002141,2]
[381037619,1755967169412,-162.85564392,0.0002141,2]
[381037620,1755967171910,-143.61298126,0.0002141,2]
[381037621,1755967171935,-12.35700861,0.00021627,2]
[381037622,1755967176151,-151.0,0.00021627,2]
[381037623,1755967178319,-442.1111941,0.00021627,2]
[381037624,1755967181952,-232.37261866,0.00021627,2]
[381037625,1755967183006,5000.0,0.00025,3]
[381037626,1755967199464,5000.0,0.00025,3]
[381037627,1755967205267,-158.8399593,0.00023353,2]
[381037628,1755967215346,162.85564392,0.00025,3]